Cogmind - Beta 12 @@@ ROGUE MODE // 2023.05.19 @ 13:54:21 Player: Pakabot Result: Destroyed by S-10 Pest with Light Assault Rifle Performance ------------- Evolutions (1) 500 Regions Visited (3) 600 Robots Destroyed (24) 120 Value Destroyed (427) 427 Prototype IDs (1) 20 Alien Tech Used (0) 0 Bonus (0) 0 TOTAL SCORE: 1667 Bonus ------- None Cogmind --------- Core Integrity 0/400 Matter 300/300 Energy 54/100 System Corruption 0% Temperature Hot (200) Movement Core (50) Location -9/Materials Parts ------- > --- POWER (1) -------- (None) > --- PROPULSION (3) --- (None) > --- UTILITY (2) ------ (None) > --- WEAPON (3) ------- (None) > --- INVENTORY (5) ---- Light Ion Engine Light Assault Rifle Datajack Peak State ------------ > --- POWER ------------ Light Ion Engine > --- PROPULSION ------- Aluminum Leg Aluminum Leg > --- UTILITY ---------- Small Storage Unit Compact Matter Pod > --- WEAPON ----------- Beam Cannon Beam Cannon Grenade Launcher > --- INVENTORY -------- Light Ion Engine Light Assault Rifle Grenade Launcher Datajack [Rating: 10] Favorites ----------- Power Light Ion Engine Engine Light Ion Engine Propulsion Aluminum Leg Leg Aluminum Leg Utility Small Storage Unit Storage Small Storage Unit Weapon Grenade Launcher Energy Gun Medium Laser Energy Cannon Beam Cannon Launcher Grenade Launcher Build | -11 -10 -10 -9 ------- Run | Jun Mat Min Mat Slots Evolved 2 | . . . 2 Power . | . . . . Propulsion 1 | . . . 1 Utility . | . . . . Weapon 1 | . . . 1 Parts Attached 18 | 6 2 5 5 Power 2 | 1 . 1 . Engine 2 | 1 . 1 . Core . | . . . . Reactor . | . . . . Propulsion 3 | 2 . 1 . Treads . | . . . . Leg 3 | 2 . 1 . Wheel . | . . . . Hover . | . . . . Flight . | . . . . Utility 2 | 1 . 1 . Device . | . . . . Storage 2 | 1 . 1 . Processor . | . . . . Hackware . | . . . . Protection . | . . . . Artifact . | . . . . Weapon 11 | 2 2 2 5 Energy Gun 2 | 2 . . . Energy Cannon 4 | . . . 4 Ballistic Gun . | . . . . Ballistic Cannon . | . . . . Launcher 5 | . 2 2 1 Special Weapon . | . . . . Impact Weapon . | . . . . Slashing Weapon . | . . . . Piercing Weapon . | . . . . Special Melee Weapon . | . . . . Unidentified Prototypes 1 | . . . 1 Parts Lost 14 | . . 4 10 Power 2 | . . 1 1 Propulsion 3 | . . 1 2 Utility 2 | . . . 2 Weapon 7 | . . 2 5 Highest Loss Streak 9 | . . 3 9 To Critical Strikes . | . . . . Average Slot Usage (%) 78 | . 85 83 69 Engine 12 | . 14 14 9 Leg 22 | . 28 28 13 Storage 17 | . 14 17 21 Energy Gun 2 | . 8 . . Energy Cannon 5 | . . . 15 Launcher 16 | . 19 22 10 Naked Turns 7 | . . . 7 Heaviest Build 18 | 13 16 16 18 Greatest Support 20 | 20 20 20 20 Greatest Overweight (x) 3 | . . . 3 Average Overweight (x) . | . . . . Largest Inventory Capacity 8 | 8 8 8 8 Average Capacity 7 | 6 8 8 7 Most Carried 6 | 4 4 5 6 Average Carried 3 | 1 3 3 4 Final Capacity 8 | 8 8 8 5 Final Carried 4 | 1 4 4 3 Class Distribution -------------------- 100% | Mutant Dominant Class ---------------- Mutant | -10/Materials Mutant | -10/Mines Mutant | -9/Materials Resources | -11 -10 -10 -9 ----------- Run | Jun Mat Min Mat Matter Collected 440 | 183 10 247 . Remotely . | . . . . Salvage Created 459 | . 86 40 333 Parts 39 | . 10 6 23 Haulers Intercepted 2 | . . . 2 Recyclers Shooed 3 | . . 1 2 Parts Field Recycled . | . . . . Retrieved Matter . | . . . . Parts Self-Destructed . | . . . . Prevented . | . . . . Kills | -11 -10 -10 -9 ------- Run | Jun Mat Min Mat Combat Hostiles Destroyed 14 | . 5 3 6 Melee 1 | . . 1 . AOE 12 | . 5 2 5 Classes Destroyed 10 | . 4 . 6 Worker 1 | . . . 1 Builder 3 | . 1 . 2 Tunneler 2 | . 1 . 1 Hauler 2 | . . . 2 Recycler 1 | . . . 1 Watcher 1 | . . . 1 Swarmer 7 | . 3 3 1 Grunt 5 | . 2 . 3 Brawler 1 | . . . 1 Sentry 1 | . . . 1 Best Kill Streak 13 | . 4 3 13 Combat Bots Only 4 | . 3 3 4 Max Kills in Single Turn 3 | . 3 2 3 Gunslinging . | . . . . Exploded 3 | . 3 2 1 Melee 1 | . . 1 . Uniques/NPCs Destroyed . | . . . . Combat | -11 -10 -10 -9 -------- Run | Jun Mat Min Mat Damage Taken 1589 | . 190 333 1066 Core 524 | . 56 63 405 Absorbed by Shields . | . . . . Core Remaining (%) 76 | 100 . 52 . Volleys Fired 33 | . 10 1 22 Largest 3 | . 2 2 3 Hottest 158 | . 60 60 158 Shots Fired 64 | . 20 2 42 Gun . | . . . . Cannon 32 | . . . 32 Launcher 32 | . 20 2 10 Special . | . . . . Kinetic . | . . . . Thermal 32 | . . . 32 Explosive 32 | . 20 2 10 Electromagnetic . | . . . . Robot Hit Streak 5 | . 3 . 5 Robot Miss Streak 4 | . 2 . 4 Penetration Max . | . . . . Secondary Targets . | . . . . Shots Hit Robots 24 | . 4 . 20 Core Hits 35 | . 9 4 22 Critical Kills 1 | . . . 1 Critical Parts Destroyed . | . . . . Critical Strikes 1 | . . . 1 Meltdown 1 | . . . 1 Melee Attacks . | . . . . Impact . | . . . . Slashing . | . . . . Piercing . | . . . . Sneak Attacks . | . . . . Combat Hostiles . | . . . . Follow-up Attacks . | . . . . Damage Inflicted 1727 | . 291 164 1272 Guns . | . . . . Cannons 296 | . . . 296 Explosions 1344 | . 291 87 966 Melee . | . . . . Ramming 87 | . . 77 10 Kinetic . | . . . . Thermal 436 | . . . 436 Explosive 1204 | . 291 87 826 Electromagnetic . | . . . . Impact . | . . . . Slashing . | . . . . Piercing . | . . . . Highest Corruption . | . . . . Average Corruption . | . . . . Corruption Purged . | . . . . Corruption Blocked . | . . . . Overload Shots . | . . . . Overflow Damage 176 | . . 30 146 Projectiles . | . . . . Explosions 174 | . . 30 144 Melee 2 | . . . 2 Knockbacks . | . . . . Impact . | . . . . Kinetic . | . . . . Secondary . | . . . . Self-Inflicted Damage 299 | . 51 40 208 Shots 7 | . 3 1 3 Rammed 2 | . . . 2 Targets Rammed 29 | . . 27 2 Kicked 27 | . . 27 . Crushed . | . . . . Highest Temperature 486 | . 6 . 486 Average Temperature 197 | . 6 . 217 Received Heat Transfer 246 | . 18 . 228 Effects 6 | . . . 6 Energy Bleed 1 | . . . 1 Interference 1 | . . . 1 Short Circuit 1 | . . . 1 Damage (major) 3 | . . . 3 Siege Activations . | . . . . Robots Corrupted . | . . . . Combat Hostiles . | . . . . Parts Fried . | . . . . Impact Corruptions 1 | . . . 1 Robots Melted 1 | . . . 1 Combat Hostiles . | . . . . Parts Melted . | . . . . Heat Transferred 692 | . . . 692 Parts Sabotaged . | . . . . Parts Stolen . | . . . . Parts Stripped . | . . . . Power Chain Reactions . | . . . . Missiles Intercepted . | . . . . Alert | -11 -10 -10 -9 ------- Run | Jun Mat Min Mat Peak Influence 411 | . 178 164 411 Initial 69 | . . 69 63 Average 107 | . 56 140 161 Maximum Alert Level 2 | . . . 2 Low Security (%) 92 | 100 100 100 75 Level 1 6 | . . . 19 Level 2 1 | . . . 4 Level 3 . | . . . . Level 4 . | . . . . Level 5 . | . . . . High Security . | . . . . Max Security . | . . . . Squads Dispatched 2 | . 1 . 1 Investigation . | . . . . Extermination . | . . . . Reinforcement 2 | . 1 . 1 Assault . | . . . . Garrison . | . . . . Intercept . | . . . . Searches Triggered . | . . . . Construction Impeded . | . . . . Haulers Reinforced . | . . . . Active Scanning Responses . | . . . . Cargo Convoy Interrupts . | . . . . Stealth | -11 -10 -10 -9 --------- Run | Jun Mat Min Mat Distress Signals 3 | . . . 3 Communications Jammed . | . . . . Distress Signals . | . . . . Times Spotted 30 | . 6 5 19 Peak Tracking Total 9 | . 3 3 9 Tactical Retreats 5 | . . 1 4 Traps | -11 -10 -10 -9 ------- Run | Jun Mat Min Mat Traps Triggered . | . . . . Indirectly . | . . . . Trap Hack Attempts . | . . . . Triggered . | . . . . Disarmed . | . . . . Reprogrammed . | . . . . Reused . | . . . . Traps Extracted . | . . . . Installed . | . . . . Triggered . | . . . . Machines | -11 -10 -10 -9 ---------- Run | Jun Mat Min Mat Machines Disabled 5 | . 2 . 3 Max in Single Turn 2 | . 1 . 2 Machines Repaired . | . . . . Machines Sabotaged . | . . . . Overloaded Fab Kills . | . . . . Hacking | -11 -10 -10 -9 --------- Run | Jun Mat Min Mat Machines Accessed . | . . . . Terminals . | . . . . Fabricators . | . . . . Repair Stations . | . . . . Recycling Units . | . . . . Scanalyzers . | . . . . Garrison Access . | . . . . Total Hacks . | . . . . Successful . | . . . . Failed . | . . . . Catastrophic . | . . . . Database Lockouts . | . . . . Manual . | . . . . Terminals . | . . . . Fabricators . | . . . . Repair Stations . | . . . . Recycling Units . | . . . . Scanalyzers . | . . . . Garrison Access . | . . . . Terminal Hacks . | . . . . Fabricator Hacks . | . . . . Repair Station Hacks . | . . . . Recycling Unit Hacks . | . . . . Scanalyzer . | . . . . Garrison Access Hacks . | . . . . Unauthorized Hacks . | . . . . Terminals . | . . . . Fabricators . | . . . . Repair Stations . | . . . . Recycling Units . | . . . . Scanalyzers . | . . . . Garrison Access . | . . . . Data Cores Recovered . | . . . . Used . | . . . . Hacking Detections . | . . . . Full Trace Events . | . . . . Feedback Events . | . . . . Feedback Blocked . | . . . . Robot Schematics Acquired . | . . . . Robots Built . | . . . . Authchips . | . . . . Time . | . . . . Total Robot Build Rating . | . . . . Part Schematics Acquired . | . . . . Parts Built . | . . . . Authchips . | . . . . Time . | . . . . Total Part Build Rating . | . . . . Parts Repaired . | . . . . Time . | . . . . Parts Recycled . | . . . . Recycled Matter . | . . . . Retrieved Matter . | . . . . Retrieved Components . | . . . . Parts Scanalyzed . | . . . . Part Schematics Acquired . | . . . . Parts Damaged . | . . . . Bothacking | -11 -10 -10 -9 ------------ Run | Jun Mat Min Mat Used RIF Installer . | . . . . Robots Hacked . | . . . . Non-combat . | . . . . Combat . | . . . . Robot Hacks Applied . | . . . . Relay Couplers Released . | . . . . Fabnet Peak Effective % . | . . . . Robots Rewired . | . . . . Allies Hacked . | . . . . Hacks Repelled . | . . . . Allies | -11 -10 -10 -9 -------- Run | Jun Mat Min Mat Total Allies . | . . . . Largest Group . | . . . . Highest-Rated Group . | . . . . Highest-Rated Ally . | . . . . Total Orders . | . . . . Ally Attacks . | . . . . Total Damage . | . . . . Kills . | . . . . Allies Corrupted . | . . . . Allies Melted . | . . . . Intel | -11 -10 -10 -9 ------- Run | Jun Mat Min Mat Robot Analysis Total . | . . . . Derelict Logs Recovered 1 | . . 1 . Drone Launches . | . . . . Drone Recoveries . | . . . . Exploration | -11 -10 -10 -9 ------------- Run | Jun Mat Min Mat Turns Passed 675 | 80 190 181 224 Spaces Moved 427 | 69 127 114 117 Core 38 | 22 . . 16 Treads . | . . . . Legs 389 | 47 127 114 101 Wheels . | . . . . Hover . | . . . . Flight . | . . . . Fastest Speed 50 | 50 120 120 50 Average Speed 119 | 97 120 120 129 Slowest Speed 200 | 120 120 120 200 Overloaded Moves . | . . . . Propulsion Burnouts . | . . . . Robots Hopped . | . . . . Cave-ins Triggered . | . . . . Exploration Rate (%) 16 | 4 29 14 19 Regions Visited 3 Branch Regions 1 Pre-discovered Areas 1 | . . 1 . Known Exits Taken . | . . . . Unknown Exits Taken 3 | 1 1 1 . Scrap Searched 1 | . . 1 . Spaces Dug . | . . . . Terrain Destroyed 139 | . 32 20 87 Melee . | . . . . Projectile . | . . . . AOE 139 | . 32 20 87 Terrain Rammed . | . . . . Walls Destroyed . | . . . . Machines Disabled . | . . . . Actions | -11 -10 -10 -9 --------- Run | Jun Mat Min Mat Total 529 | 81 145 151 152 Wait . | . . . . Move 424 | 68 126 113 117 Hop . | . . . . Pick Up 20 | 7 5 5 3 Fast Attach . | . . . . Attach 18 | 6 2 5 5 Detach 2 | . . . 2 Swap . | . . . . Drop 3 | . 2 . 1 Fire 33 | . 10 1 22 Melee . | . . . . Ram 2 | . . . 2 Kick 27 | . . 27 . Crush . | . . . . Escape Stasis . | . . . . Rewire . | . . . . Trap . | . . . . Miscellaneous . | . . . . Route ------- -11/Junkyard -10/Materials -10/Mines -9/Materials History --------- Turn | Location | Event 4 | -11/Junkyard | Discovered new exit (range 15) 81 | -11/Junkyard | Entered Materials 251 | -10/Materials | Discovered new exit (range 16) 271 | -10/Materials | Entered Mines 303 | -10/Mines | Build established: Mutant 357 | -10/Mines | Lost 3 parts (1p1n1w) 370 | -10/Mines | Learned location of Mines (-9) 442 | -10/Mines | Discovered new exit (range 7) 452 | -10/Mines | Entered Materials 452 | -9/Materials | Evolved 2 slots: Propulsion x1, Weapon x1 651 | -9/Materials | Core integrity fell below 50% 672 | -9/Materials | Core integrity fell below 20% 676 | -9/Materials | Destroyed by S-10 Pest with Light Assault Rifle Last Messages --------------- K-01 Serf collects debris. Overheating: Broken Adv. Beam Cannon damaged (-10). Overheating: Sml. Storage Unit damaged (-13). Overheating: Beam Cannon damaged (-43). Broken Adv. Beam Cannon destroyed. Beam Cannon destroyed. K-01 Serf collects debris. U-05 Engineer builds a Door. K-01 Serf suffers critical hit (Burn). K-01 Serf destroyed. Sml. Storage Unit destroyed. U-05 Engineer builds a Wall. R-06 Scavenger collects Wheel. Slammed into S-10 Pest. U-05 Engineer lays Concrete. Slammed into S-10 Pest. Destroyed Flight Unit. S-10 Pest system corrupted by crushing effect. S-10 Pest system terminally corrupted. U-05 Engineer destroyed. Map ----- +----------------------------------------------------+ | ?????????????????????????????????????????????????? | | ?????????????????????????????????????????????????? | | ?????????????????????????????????????????????????? | | ?????????????????????????????????????????????????? | | ?????????????????????????????????????????????????? | | ?????????????????????????????????????????????????? | | ?????????????????????????????????????????????????? | | ?????????????????????????????????????????????????? | | ?????????????????????????????????????????????????? | | ?????????????????????????????????????????????????? | | ???????????????????????? ??????????????????????? | | ???????????????????????? ??????????????????????? | | ???????????????????????? ??????????????????????? | | ???????????????????????+ #?????????????????????? | | ???????????????????????# #?????????????????????? | | ???????????????????????# #?????????????????????? | | ???????????????????????# ??????????????????????? | | ??????????????????????? r ??????????????????????? | | ??????????????????????? ??????????????????????? | | ???????????????????????? ??????????????????????? | | ???????????????????????? ??????????????????????? | | ???????????????????????? ??????????????????????? | | ??? ????????????????????# #??????????????????????? | | ? ???????????????????#!#??????????????????????? | | ? ???????????????????#%####???????????????????? | | ?"" ?????????????????##@# ######??????????????? | | """ ?????????????????# ! #??????????????? | | """ ??????? #???????# %= #??????????????? | | ?????? ??????#%!%= #??????????????? | | ????? ?????# %s #??????????????? | | ????? ????# Y% #??????????????? | | """ ??? #??## #??????????????? | | """ ????? # ??#s #??????????????? | | """ ?????# # ### ##?????????????? | | """ ###### # ##### ??????? | | = # *r r ???????? | | ####### # = ]]# *! %=% # ????????? | | ???????# [ */ ];!%%*= [ ##?????????? | | ?????????# %]]* **%[%= #?????????? | | ###???????????## " = " ##?????????? | | ???????????????# " *% ; "" " #?????????? | | ???????????????# " " """" #?????????? | | ???????????????##" " #??????????? | | ????????????????#"""" "" #??????????? | | ????????????????### # ## """ #??????????? | | ??????????????????########## """ #??????????? | | ???????????????????????????# """ #??????????? | | ??????????????????########?# #??????????? | | ???????????????????T ?# #??????????? | | ??????????????????? # """" #??????????? | +----------------------------------------------------+ Best States ------------- Heat Dissipation 28 Energy Generation 10 Energy Capacity 250 Matter Stores 450 Matter Capacity 450 Sight Range 16 Terrain Scan Density 10 Evasion (%) 55 Item Schematics ----------------- None Robot Schematics ------------------ None Fabricated ------------ Nothing Alien Tech Used ----------------- None Achievements -------------- None Challenges ------------ None Game ------ Seed FireThermalProtomatter Manual? 0 Play Time 00:08:59 Cumulative 6.3 hours Start 2023.05.19 @ 13:47:49 End 2023.05.19 @ 13:54:21 Sessions 1 Manual Loads 0 Difficulty Rogue Special Mode None Game No. 23 Rogue 23 Adventurer 0 Explorer 0 Win Type - Total 0 Types 0/0/0/0/0/0/0/0/0 Lore% 5 Gallery% 12 Achievement% 12 Wizard Run 0 Options --------- ASCII 0 Keyboard 0 Movement Arrows Keybinds 0 Fullscreen 0 Font 16/SmallcapsGlow Map View 76x50 Tactical HUD 0 Map Filters NONE Filters NONE Steam 1 RUN: 79323533-970f-41a5-a19a-c46c92ec5879